bitfinex/quotes_BTCUSD_20240821
["timestamp","ask_amount","ask_price","bid_price","bid_amount"]
[1724281459183,1.33877891,61258.0,61257.0,0.0009075]
[1724281459408,1.13224191,61258.0,61257.0,0.0009075]
[1724281460327,1.11824191,61258.0,61257.0,0.0009075]
[1724281460573,1.13471592,61258.0,61257.0,0.0009075]
[1724281460778,0.82222892,61258.0,61257.0,0.0009075]
[1724281460981,0.49574192,61258.0,61257.0,0.0009075]
[1724281461185,0.82222892,61258.0,61257.0,0.0009075]
[1724281461602,0.80822892,61258.0,61257.0,0.0009075]
[1724281461817,0.48174192,61258.0,61257.0,0.0009075]
[1724281462042,0.47274192,61258.0,61257.0,0.0009075]
[1724281462254,0.30949892,61258.0,61257.0,0.0009075]
[1724281463166,0.29549892,61258.0,61257.0,0.0009075]
[1724281463618,0.30949892,61258.0,61257.0,0.0009075]
[1724281464044,0.30949892,61258.0,61257.0,0.9578395]
[1724281464045,0.20949892,61258.0,61257.0,0.9578395]
[1724281464275,0.18149892,61258.0,61257.0,0.6313465]
[1724281464495,0.20849892,61258.0,61257.0,0.6313465]
[1724281464908,0.18149892,61258.0,61257.0,0.6313465]
[1724281465120,0.19449892,61258.0,61257.0,0.6313465]
[1724281465328,0.20849892,61258.0,61257.0,0.1416075]
[1724281465538,0.20849892,61258.0,61257.0,0.0792075]
[1724281466607,0.19449892,61258.0,61257.0,0.0792075]
[1724281466842,0.20449892,61258.0,61257.0,0.0792075]
[1724281467076,0.19149892,61258.0,61257.0,0.0792075]
[1724281467286,0.19049892,61258.0,61257.0,0.0792075]
[1724281467543,0.18149892,61258.0,61257.0,0.0792075]
[1724281467749,0.19549892,61258.0,61257.0,0.0792075]
[1724281467954,0.20849892,61258.0,61257.0,0.0792075]
[1724281471434,0.22810269,61258.0,61257.0,0.0792075]
[1724281475268,0.22810269,61258.0,61257.0,0.2424535]
[1724281478298,0.22810269,61258.0,61257.0,0.5689465]
[1724281478507,0.22810269,61258.0,61257.0,0.9596395]
[1724281478508,0.21103879,61258.0,61257.0,0.9596395]
[1724281480321,0.21103879,61258.0,61257.0,0.0792075]
[1724281480526,0.21103879,61258.0,61257.0,0.0009075]
[1724281480527,0.72376879,61258.0,61257.0,0.0009075]
[1724281480740,0.71276879,61258.0,61257.0,0.0009075]
[1724281480947,0.70276879,61258.0,61257.0,0.0009075]
[1724281481181,1.48255827,61258.0,61257.0,0.0009075]
[1724281481366,1.66445827,61258.0,61257.0,0.0009075]
[1724281481567,1.13825579,61258.0,61257.0,0.0009075]
[1724281481976,1.12925579,61258.0,61257.0,0.0009075]
[1724281482238,1.13925579,61258.0,61257.0,0.0009075]
[1724281482380,1.15325579,61258.0,61257.0,0.0009075]
[1724281482593,1.14325579,61258.0,61257.0,0.0009075]
[1724281482808,1.15725579,61258.0,61257.0,0.0009075]
[1724281483374,1.17778546,61258.0,61257.0,0.0009075]
[1724281483690,1.19178546,61258.0,61257.0,0.0009075]
[1724281483958,1.20578546,61258.0,61257.0,0.0009075]
[1724281484163,1.19178546,61258.0,61257.0,0.0009075]
[1724281484371,1.20578546,61258.0,61257.0,0.0009075]
[1724281484961,1.20878546,61258.0,61257.0,0.0009075]
[1724281485743,1.53527246,61258.0,61257.0,0.0009075]
[1724281485970,1.55950059,61258.0,61257.0,0.0009075]
[1724281486120,1.48674279,61258.0,61257.0,0.0009075]
[1724281486333,1.55950059,61258.0,61257.0,0.0009075]
[1724281486968,1.48674279,61258.0,61257.0,0.0009075]
[1724281487166,1.55950059,61258.0,61257.0,0.0009075]
[1724281487815,2.11750857,61258.0,61257.0,0.0009075]
[1724281488014,2.23877158,61258.0,61257.0,0.0009075]
[1724281488229,2.11750857,61258.0,61257.0,0.0009075]
[1724281489098,2.10350857,61258.0,61257.0,0.0009075]
[1724281489306,2.11750857,61258.0,61257.0,0.0009075]
[1724281489534,1.95352979,61258.0,61257.0,0.0009075]
[1724281489828,1.93952979,61258.0,61257.0,0.0009075]
[1724281489975,1.95352979,61258.0,61257.0,0.0009075]
[1724281491391,1.94952979,61258.0,61257.0,0.0009075]
[1724281491602,2.07296584,61258.0,61257.0,0.0009075]
[1724281492026,1.95152979,61258.0,61257.0,0.0009075]
[1724281492981,1.71919685,61258.0,61257.0,0.0009075]
[1724281493193,1.62204279,61258.0,61257.0,0.0009075]
[1724281493388,1.61753115,61258.0,61257.0,0.0009075]
[1724281493597,1.61753599,61258.0,61257.0,0.0009075]
[1724281493859,1.55663599,61258.0,61257.0,0.0009075]
[1724281494024,1.48374279,61258.0,61257.0,0.0009075]
[1724281494237,1.50080669,61258.0,61257.0,0.0009075]
[1724281494662,1.57369989,61258.0,61257.0,0.0009075]
[1724281495280,1.43080669,61258.0,61257.0,0.0009075]
[1724281496383,1.50369989,61258.0,61257.0,0.0009075]
[1724281497113,1.43059856,61258.0,61257.0,0.0009075]
[1724281497448,1.43142356,61258.0,61257.0,0.0009075]
[1724281498426,1.49685356,61258.0,61257.0,0.0009075]
[1724281499237,1.59404449,61258.0,61257.0,0.0009075]
[1724281499481,1.49985356,61258.0,61257.0,0.0009075]
[1724281499992,1.94982923,61258.0,61257.0,0.0009075]
[1724281500227,1.96674056,61258.0,61257.0,0.0009075]
[1724281501480,1.95274056,61258.0,61257.0,0.0009075]
[1724281501911,1.96674056,61258.0,61257.0,0.0009075]
[1724281502116,2.07015772,61258.0,61257.0,0.0009075]
[1724281502326,2.39664472,61258.0,61257.0,0.0009075]
[1724281502519,2.41064472,61258.0,61257.0,0.0009075]
[1724281502859,1.96674056,61258.0,61257.0,0.0009075]
[1724281503404,1.95274056,61258.0,61257.0,0.0009075]
[1724281503749,1.93874056,61258.0,61257.0,0.0009075]
[1724281504133,1.95274056,61258.0,61257.0,0.0009075]
[1724281504695,1.96674056,61258.0,61257.0,0.0009075]
[1724281505335,1.93874056,61258.0,61257.0,0.0009075]
[1724281505568,1.96674056,61258.0,61257.0,0.0009075]
[1724281506276,1.82334056,61258.0,61257.0,0.0009075]
[1724281506467,1.49685356,61258.0,61257.0,0.0009075]
[1724281507249,1.61832741,61258.0,61257.0,0.0009075]
[1724281507472,1.49685356,61258.0,61257.0,0.0009075]
[1724281507677,1.59402792,61258.0,61257.0,0.0009075]
[1724281507927,1.56973608,61258.0,61257.0,0.0009075]
[1724281508188,0.79376208,61258.0,61257.0,0.0785075]
[1724281508390,0.16571956,61258.0,61257.0,0.1436075]
[1724281508803,0.15171956,61258.0,61257.0,0.1436075]
[1724281509008,0.13771956,61258.0,61257.0,0.1436075]
[1724281509214,0.15171956,61258.0,61257.0,0.1436075]
[1724281509638,0.23771956,61258.0,61257.0,0.1436075]
[1724281509840,0.25171956,61258.0,61257.0,0.1436075]
[1724281509966,0.23771956,61258.0,61257.0,0.1436075]
[1724281510373,0.25071956,61258.0,61257.0,0.1436075]
[1724281510982,0.26471956,61258.0,61257.0,0.1436075]
[1724281511321,0.25071956,61258.0,61257.0,0.1436075]
[1724281511480,0.05649267,61258.0,61257.0,0.6333465]
[1724281511868,0.06849267,61258.0,61257.0,0.6333465]
[1724281512264,0.04349267,61258.0,61257.0,0.6333465]
[1724281512458,0.04349267,61258.0,61257.0,0.3068535]
[1724281512459,0.05349267,61258.0,61257.0,0.3068535]
[1724281512671,0.05349267,61258.0,61257.0,0.1436075]
[1724281512672,0.22849565,61258.0,61257.0,0.1436075]
[1724281513334,0.39173865,61258.0,61257.0,0.1436075]
[1724281513733,0.71822565,61258.0,61257.0,0.1436075]
[1724281514414,0.39173865,61258.0,61257.0,0.1436075]
[1724281517825,0.22849565,61258.0,61257.0,0.1436075]
[1724281521918,0.06449267,61258.0,61257.0,0.6333465]
[1724281522127,0.06449267,61258.0,61257.0,0.9598395]
[1724281523437,0.04742877,61258.0,61257.0,0.9598395]
[1724281524075,1.19089275,61258.0,61257.0,0.0009075]
[1724281524345,1.37713575,61258.0,61257.0,0.0009075]
[1724281524576,1.47713575,61258.0,61257.0,0.0009075]
[1724281525198,1.52868479,61258.0,61257.0,0.0009075]
[1724281525419,1.94742275,61258.0,61257.0,0.0009075]
[1724281526063,1.143079,61238.0,61233.0,0.49229154]
[1724281526281,1.30808198,61238.0,61233.0,0.49229154]
[1724281526491,1.30808198,61238.0,61231.0,0.1418]
[1724281526492,1.40708198,61238.0,61231.0,0.1418]
[1724281526707,1.45569542,61238.0,61231.0,0.1418]
[1724281527763,1.46969542,61238.0,61231.0,0.1418]
[1724281527917,1.46969542,61238.0,61217.0,0.49229154]
[1724281527918,2.00049719,61238.0,61217.0,0.49229154]
[1724281528340,2.01449719,61238.0,61217.0,0.49229154]
[1724281528792,2.00049719,61238.0,61217.0,0.49229154]
[1724281528963,2.01449719,61238.0,61217.0,0.49229154]
[1724281529598,1.88078942,61238.0,61217.0,0.49229154]
[1724281529793,1.97372671,61238.0,61217.0,0.49229154]
[1724281529999,1.87678942,61238.0,61227.0,0.0812]
[1724281530210,1.89278942,61238.0,61227.0,0.0812]
[1724281530421,1.48369542,61238.0,61227.0,0.0812]
[1724281530624,1.46969542,61238.0,61227.0,0.0812]
[1724281530835,1.53217431,61238.0,61229.0,0.0603]
[1724281531043,1.48369542,61238.0,61229.0,0.0603]
[1724281531461,1.45569542,61238.0,61229.0,0.0603]
[1724281531670,1.46969542,61238.0,61229.0,0.0603]
[1724281531872,1.48369542,61238.0,61229.0,0.0603]
[1724281532075,1.46969542,61238.0,61229.0,0.0603]
[1724281532285,1.6366742,61238.0,61229.0,0.0603]
[1724281532493,1.6506742,61238.0,61227.0,0.0812]
[1724281532922,1.46969542,61238.0,61227.0,0.0812]
[1724281533357,1.48369542,61238.0,61227.0,0.0812]
[1724281534642,1.48469542,61238.0,61227.0,0.0812]
[1724281534874,1.48369542,61238.0,61227.0,0.0812]
[1724281535748,1.46969542,61238.0,61227.0,0.0812]
[1724281535953,1.45569542,61238.0,61227.0,0.0812]
[1724281536150,1.46930246,61238.0,61227.0,0.0812]
[1724281536402,1.54875246,61238.0,61227.0,0.0812]
[1724281536811,1.53475246,61238.0,61227.0,0.0812]
[1724281537044,1.53475246,61238.0,61214.0,0.0009086]
[1724281537045,0.148,61215.0,61214.0,0.0009086]
[1724281537298,0.76256098,61215.0,61214.0,0.0009086]
[1724281537460,1.86771198,61215.0,61214.0,0.0009086]
[1724281537664,1.7423362,61215.0,61214.0,0.0009086]
[1724281537885,1.7433362,61215.0,61214.0,0.0009086]
[1724281538095,1.7563362,61215.0,61214.0,0.0009086]
[1724281538540,1.7423362,61215.0,61214.0,0.0009086]
[1724281538762,1.7734001,61215.0,61214.0,0.0009086]
[1724281539821,1.5012001,61215.0,61214.0,0.0009086]
[1724281540278,2.08022011,61215.0,61214.0,0.0009086]
[1724281540533,2.08022011,61215.0,61199.0,0.0009086]
[1724281540534,1.761786,61200.0,61199.0,0.0009086]
[1724281540760,1.96568898,61200.0,61199.0,0.0009086]
[1724281541026,2.06568898,61200.0,61199.0,0.0009086]
[1724281541271,2.11432129,61200.0,61199.0,0.0009086]
[1724281542108,2.11432129,61200.0,61180.0,0.49229154]
[1724281542109,0.490387,61176.0,61169.0,0.49229154]
[1724281542320,0.98131498,61176.0,61169.0,0.49229154]
[1724281542598,1.08131498,61176.0,61167.0,0.0805]
[1724281542737,1.10695333,61176.0,61167.0,0.0805]
[1724281543672,1.12095333,61176.0,61167.0,0.0805]
[1724281543903,1.12095333,61176.0,61161.0,0.009075]
[1724281543904,1.43387833,61176.0,61161.0,0.009075]
[1724281544131,1.47087833,61176.0,61171.0,0.086475]
[1724281544341,1.48487833,61176.0,61171.0,0.086475]
[1724281545172,1.47087833,61176.0,61171.0,0.086475]
[1724281545385,1.48487833,61176.0,61171.0,0.086475]
[1724281545587,1.46187833,61176.0,61171.0,0.086475]
[1724281546034,0.79402833,61176.0,61171.0,0.086475]
[1724281546242,1.13495333,61176.0,61175.0,0.070675]
[1724281547083,1.10695333,61176.0,61175.0,0.070675]
[1724281547461,1.12095333,61176.0,61175.0,0.070675]
[1724281548049,1.13495333,61176.0,61175.0,0.070675]
[1724281548261,1.13495333,61176.0,61175.0,0.057198]
[1724281548465,0.490419,61172.0,61171.0,0.086475]
[1724281548669,0.75442198,61172.0,61171.0,0.086475]
[1724281549867,0.76842198,61172.0,61171.0,0.086475]
[1724281550066,0.78242198,61172.0,61171.0,0.086475]
[1724281550881,0.45547598,61172.0,61171.0,0.086475]
[1724281551323,0.44147598,61172.0,61171.0,0.151275]
[1724281551970,0.16400298,61172.0,61171.0,0.151275]
[1724281552446,0.02563835,61176.0,61171.0,0.314751]
[1724281552585,0.16400298,61175.0,61172.0,0.163472]
[1724281552786,0.16400298,61175.0,61171.0,0.151275]
[1724281552989,0.02563835,61176.0,61174.0,0.238967]
[1724281553261,0.18964133,61176.0,61174.0,0.238967]
[1724281553692,0.20364133,61176.0,61174.0,0.238967]
[1724281554108,0.014,61175.0,61174.0,0.238967]
[1724281554328,0.20364133,61176.0,61174.0,0.238967]
[1724281554546,0.20364133,61176.0,61174.0,0.238966]
[1724281554722,0.21764133,61176.0,61174.0,0.238466]
[1724281554942,0.18964133,61176.0,61175.0,0.163465]
[1724281555146,0.20264133,61176.0,61175.0,0.163465]
[1724281555350,0.21664133,61176.0,61175.0,0.163465]
[1724281555727,0.21664133,61176.0,61175.0,0.490395]
[1724281555728,0.20264133,61176.0,61175.0,0.490395]
[1724281555936,0.03863835,61176.0,61175.0,1.210555]
[1724281556145,0.05063835,61176.0,61175.0,1.210555]
[1724281556531,0.02563835,61176.0,61175.0,1.210555]
[1724281556913,0.03463835,61176.0,61175.0,1.210555]
[1724281557132,0.04663835,61176.0,61175.0,1.210555]
[1724281557747,0.03463835,61176.0,61175.0,1.293755]
[1724281558152,0.03463835,61176.0,61175.0,1.294755]
[1724281558444,0.03463835,61176.0,61175.0,1.621685]
[1724281558647,0.02563835,61176.0,61175.0,1.620685]
[1724281558851,0.02563835,61176.0,61175.0,1.6225936]
[1724281559097,0.02563835,61176.0,61175.0,1.6245936]
[1724281559510,0.02563835,61176.0,61175.0,1.6235936]
[1724281559719,0.02663835,61176.0,61175.0,1.6235936]
[1724281559919,0.02663835,61176.0,61175.0,1.6255936]
[1724281560122,0.02663835,61176.0,61175.0,1.6225936]
[1724281560336,0.02563835,61176.0,61175.0,1.6225936]
[1724281560553,0.02663835,61176.0,61175.0,1.6215936]
[1724281560951,0.02763835,61176.0,61175.0,1.6245936]
[1724281562113,0.02763835,61176.0,61175.0,1.2976636]
[1724281562335,0.02763835,61176.0,61175.0,0.6438036]
[1724281562580,0.02763835,61176.0,61175.0,0.9707336]
[1724281563001,0.02663835,61176.0,61175.0,0.9697336]
[1724281563216,0.02563835,61176.0,61175.0,0.6398036]
[1724281563433,0.02563835,61176.0,61175.0,0.0019086]
[1724281563434,0.18964133,61176.0,61175.0,0.0019086]
[1724281563646,0.02563835,61176.0,61175.0,0.1653736]
[1724281563882,0.02563835,61176.0,61175.0,0.5710036]
[1724281564094,0.02563835,61176.0,61175.0,0.8979336]
[1724281564287,0.02563835,61176.0,61175.0,0.8969336]
[1724281564519,0.02663835,61176.0,61175.0,0.8969336]
[1724281565179,0.02863835,61176.0,61175.0,0.8969336]
[1724281565595,0.02663835,61176.0,61175.0,0.8969336]
[1724281566013,0.02963835,61176.0,61175.0,0.8969336]
[1724281566690,0.19364133,61176.0,61175.0,0.5700036]
[1724281569049,0.19364133,61176.0,61175.0,0.2430736]
[1724281569261,0.35710333,61176.0,61175.0,0.0009086]
[1724281570331,0.19064133,61176.0,61175.0,0.0009086]
[1724281570538,0.18964133,61176.0,61175.0,0.0009086]
[1724281570761,0.36310333,61176.0,61175.0,0.0009086]
[1724281570943,0.69685333,61176.0,61175.0,0.0009086]
[1724281571169,0.36392833,61176.0,61175.0,0.0009086]
[1724281571374,0.37392833,61176.0,61175.0,0.0009086]
[1724281571811,0.36392833,61176.0,61175.0,0.0009086]
[1724281572013,0.37292833,61176.0,61175.0,0.0009086]
[1724281572443,0.36292833,61176.0,61175.0,0.0009086]
[1724281572869,0.36292833,61176.0,61175.0,0.0004086]
[1724281572870,0.37292833,61176.0,61175.0,0.0004086]
[1724281573493,0.20946633,61176.0,61175.0,0.0004086]
[1724281574771,0.20946633,61176.0,61175.0,0.1638736]
[1724281575181,0.20946633,61176.0,61175.0,0.0004086]
[1724281576709,0.20946633,61176.0,61175.0,0.2402736]
[1724281577121,0.20946633,61176.0,61175.0,0.0004086]
[1724281577734,1.16837833,61176.0,61175.0,0.0004086]
[1724281577943,0.79985333,61176.0,61175.0,0.0004086]
[1724281579744,0.80892833,61176.0,61175.0,0.0004086]
[1724281580173,1.13585333,61176.0,61175.0,0.0004086]
[1724281582391,0.80892833,61176.0,61175.0,0.0004086]
[1724281583570,0.48200333,61176.0,61175.0,0.0004086]
[1724281584760,0.80892833,61176.0,61175.0,0.0004086]
[1724281585113,0.31854133,61176.0,61175.0,0.0004086]
[1724281585263,0.30946633,61176.0,61175.0,0.5708036]
[1724281585694,0.20946633,61176.0,61175.0,0.8977336]
[1724281585897,0.04546335,61176.0,61175.0,0.8977336]
[1724281586104,0.04546335,61176.0,61175.0,1.2246636]
[1724281587397,0.03646335,61176.0,61175.0,1.2246636]
[1724281587599,0.02646335,61176.0,61175.0,1.2246636]
[1724281587819,0.02946335,61176.0,61175.0,1.2246636]
[1724281587991,0.03446335,61176.0,61175.0,1.2246636]
[1724281589279,0.03446335,61176.0,61175.0,1.5515936]
[1724281589485,0.03446335,61176.0,61175.0,1.6157936]
[1724281589698,0.03446335,61176.0,61175.0,1.6177936]
[1724281589893,0.03446335,61176.0,61175.0,1.6147936]
[1724281590601,0.03146335,61176.0,61175.0,1.6147936]
[1724281590791,0.02746335,61176.0,61175.0,1.6177936]
[1724281590988,0.03246335,61176.0,61175.0,1.6177936]
[1724281591189,0.03246335,61176.0,61175.0,1.6187936]
[1724281591344,0.02746335,61176.0,61175.0,1.6177936]
[1724281591549,0.02646335,61176.0,61175.0,1.6147936]
[1724281591836,0.02746335,61176.0,61175.0,1.6167936]
[1724281591965,0.02846335,61176.0,61175.0,1.6197936]
[1724281594524,0.02746335,61176.0,61175.0,1.6177936]
[1724281594726,0.02746335,61176.0,61175.0,1.6167936]
[1724281595222,0.02846335,61176.0,61175.0,1.6187936]
[1724281596742,0.02846335,61176.0,61175.0,1.6167936]
[1724281596743,0.02746335,61176.0,61175.0,1.6167936]
[1724281597180,0.02846335,61176.0,61175.0,1.6187936]
[1724281597402,0.02846335,61176.0,61175.0,1.6197936]
[1724281597644,0.02846335,61176.0,61175.0,1.6217936]
[1724281599269,0.02846335,61176.0,61175.0,1.6187936]
[1724281604583,0.02846335,61176.0,61175.0,1.6197936]
[1724281605732,0.02846335,61176.0,61175.0,1.6187936]
[1724281606381,0.02846335,61176.0,61175.0,1.6197936]
[1724281606788,0.000826,61196.0,61195.0,0.326824]
[1724281606991,0.000826,61196.0,61195.0,0.81706]
[1724281607194,0.000826,61196.0,61195.0,1.143884]
[1724281607994,0.0344516,61196.0,61195.0,1.143884]
[1724281608313,0.0404516,61196.0,61195.0,1.143884]
[1724281608869,0.0404516,61196.0,61195.0,1.219584]
[1724281609897,0.0324516,61196.0,61195.0,1.219584]
[1724281610101,0.0354516,61196.0,61195.0,1.220584]
[1724281610314,0.0354516,61196.0,61195.0,1.221584]
[1724281610856,0.0264516,61196.0,61195.0,1.219584]
[1724281610998,0.0264516,61196.0,61195.0,1.228584]
[1724281612818,0.0264516,61196.0,61195.0,1.555408]
[1724281613438,0.0264516,61196.0,61195.0,1.72041098]
[1724281613811,0.0264516,61196.0,61195.0,1.71541098]
[1724281614035,0.0264516,61196.0,61195.0,1.71741098]
[1724281614240,0.0264516,61196.0,61195.0,1.71341098]
[1724281614458,0.0274516,61196.0,61195.0,1.71141098]
[1724281614646,0.0284516,61196.0,61195.0,1.71941098]
[1724281614815,0.0284516,61196.0,61195.0,1.71841098]
[1724281615861,0.0274516,61196.0,61195.0,1.71841098]
[1724281616329,0.0264516,61196.0,61195.0,1.71641098]
[1724281616478,0.0274516,61196.0,61195.0,1.72941098]
[1724281617060,0.0274516,61196.0,61195.0,1.72441098]
[1724281617263,0.0284516,61196.0,61195.0,1.73441098]
[1724281617694,0.0284516,61196.0,61195.0,1.569408]
[1724281619339,0.0284516,61196.0,61195.0,2.502384]
[1724281619607,0.0284516,61196.0,61195.0,0.186412]
[1724281619803,0.0284516,61196.0,61195.0,0.84006]
[1724281620411,0.0274516,61196.0,61195.0,0.83006]
[1724281620828,0.0264516,61196.0,61195.0,0.81706]
[1724281621038,0.0264516,61196.0,61195.0,0.490236]
[1724281621444,0.0264516,61196.0,61195.0,0.492236]
[1724281622284,0.0264516,61196.0,61195.0,0.002]
[1724281622489,0.0264516,61196.0,61195.0,0.492236]
[1724281622895,0.0274516,61196.0,61195.0,0.492236]
[1724281623314,0.0274516,61196.0,61195.0,0.490236]
[1724281623562,0.0274516,61196.0,61195.0,0.491236]
[1724281623756,0.0274516,61196.0,61195.0,0.81806]
[1724281623992,0.0274516,61196.0,61195.0,1.144884]
[1724281624262,0.0274516,61196.0,61195.0,1.209384]
[1724281625261,0.0274516,61196.0,61195.0,2.469184]
[1724281626906,0.0274516,61196.0,61195.0,2.796008]
[1724281627110,0.0274516,61196.0,61195.0,2.871608]
[1724281627974,0.0274516,61196.0,61195.0,3.03861098]
[1724281628181,0.0274516,61196.0,61195.0,3.03661098]
[1724281628458,0.0274516,61196.0,61195.0,3.03861098]
[1724281628620,0.0264516,61196.0,61195.0,3.03861098]
[1724281629020,0.0274516,61196.0,61195.0,3.37143498]
[1724281629396,0.0274516,61196.0,61195.0,3.37443498]
[1724281629612,0.0264516,61196.0,61195.0,3.36743498]
[1724281629822,0.0264516,61196.0,61195.0,3.03861098]
[1724281630026,0.0264516,61196.0,61195.0,3.04361098]
[1724281630183,0.0264516,61196.0,61195.0,3.04061098]
[1724281630415,0.0274516,61196.0,61195.0,3.05561098]
[1724281630656,0.0274516,61196.0,61195.0,3.04661098]
[1724281631058,0.0284516,61196.0,61195.0,3.05961098]
[1724281631710,0.0274516,61196.0,61195.0,3.04861098]
[1724281632028,0.0274516,61196.0,61195.0,3.05161098]
[1724281632238,0.0274516,61196.0,61195.0,3.05361098]
[1724281632444,0.0274516,61196.0,61195.0,3.05061098]
[1724281632640,0.0274516,61196.0,61195.0,3.04861098]
[1724281632842,0.0284516,61196.0,61195.0,3.05961098]
[1724281633595,0.0284516,61196.0,61195.0,3.05861098]
[1724281634775,0.0284516,61196.0,61195.0,2.894608]
[1724281637297,0.0284516,61196.0,61195.0,2.895608]
[1724281637507,0.0284516,61196.0,61195.0,3.06161098]
[1724281637723,0.0284516,61196.0,61195.0,3.38843498]
[1724281637929,0.0284516,61196.0,61195.0,3.41143498]
[1724281638145,0.0284516,61196.0,61195.0,3.51143498]
[1724281638357,0.0284516,61196.0,61195.0,3.51343498]
[1724281638563,0.002826,61196.0,61195.0,3.51343498]
[1724281639013,0.002826,61196.0,61195.0,3.84025898]
[1724281640889,1e-06,61196.0,61195.0,3.84025898]
[1724281641537,1e-06,61196.0,61195.0,4.01245898]
[1724281641774,0.49229154,61215.0,61214.0,1.223027]
[1724281641985,0.49229154,61215.0,61214.0,1.549749]
[1724281642237,0.0756,61227.0,61222.0,0.326679]
[1724281642484,0.0756,61227.0,61226.0,0.163329]
[1724281642650,0.0756,61227.0,61226.0,0.489987]
[1724281643539,0.0836,61227.0,61226.0,0.489987]
[1724281643713,0.0836,61227.0,61222.0,0.327679]
[1724281643714,0.136,61226.0,61222.0,0.001]
[1724281643920,0.16400298,61225.0,61222.0,0.001]
[1724281644123,0.16400298,61225.0,61213.0,1.2598]
[1724281644335,0.16400298,61225.0,61223.0,0.163335]
[1724281646459,0.136,61226.0,61225.0,0.163331]
[1724281646900,0.38773398,61226.0,61223.0,0.002]
[1724281647121,0.163334,61224.0,61223.0,0.002]
[1724281647354,0.79630598,61224.0,61223.0,0.001]
[1724281647557,1.12297498,61224.0,61223.0,0.001]
[1724281647973,0.79630598,61224.0,61223.0,0.001]
[1724281648177,0.0822,61221.0,61218.0,0.16335]
[1724281648408,0.16400298,61220.0,61218.0,0.16335]
[1724281649648,0.16600298,61220.0,61218.0,0.16435]
[1724281649956,0.16600298,61220.0,61219.0,0.163347]
[1724281650097,0.002,61220.0,61219.0,0.163347]
[1724281650296,0.002,61220.0,61219.0,0.816737]
[1724281651322,0.0822,61221.0,61220.0,0.490035]
[1724281652692,0.0892,61221.0,61220.0,0.491035]
[1724281652914,0.007,61221.0,61220.0,1.144415]
[1724281654328,0.007,61221.0,61220.0,1.220515]
[1724281655235,0.009,61221.0,61220.0,0.164345]
[1724281655379,0.32312798,61221.0,61220.0,0.001]
[1724281656061,0.32312798,61221.0,61220.0,0.164345]
[1724281656464,0.32312798,61221.0,61220.0,0.001]
[1724281657073,0.009825,61221.0,61220.0,0.892825]
[1724281657337,0.009825,61221.0,61220.0,0.817725]
[1724281657518,0.091425,61221.0,61220.0,0.817725]
[1724281657734,0.32162798,61221.0,61220.0,0.164345]
[1724281657886,0.32162798,61221.0,61220.0,0.001]
[1724281660921,0.157625,61221.0,61220.0,0.491035]
[1724281661141,0.157625,61221.0,61220.0,0.817725]
[1724281661142,0.009825,61221.0,61220.0,0.817725]
[1724281661588,0.009825,61221.0,61220.0,1.144415]
[1724281662189,0.009825,61221.0,61220.0,1.225615]
[1724281665433,0.000825,61221.0,61220.0,1.224615]
[1724281665840,0.009825,61221.0,61220.0,1.225615]
[1724281666407,0.000825,61221.0,61220.0,1.224615]
[1724281667158,0.000825,61221.0,61220.0,1.227615]
[1724281667366,0.000825,61221.0,61220.0,1.617605]
[1724281667584,0.000825,61221.0,61220.0,1.615605]
[1724281667760,0.002825,61221.0,61220.0,3.04140798]
[1724281668157,0.000825,61221.0,61220.0,3.04787938]
[1724281668383,0.000825,61221.0,61220.0,3.04487938]
[1724281668595,0.000825,61221.0,61220.0,3.04787938]
[1724281668994,0.000825,61221.0,61220.0,3.04887938]
[1724281669197,0.000825,61221.0,61220.0,3.04987938]
[1724281669826,0.000825,61221.0,61220.0,3.38056938]
[1724281670669,0.000825,61221.0,61220.0,3.37756938]
[1724281670872,0.000825,61221.0,61220.0,2.875405]
[1724281671123,0.000825,61221.0,61220.0,2.880405]
[1724281671322,0.000825,61221.0,61220.0,3.04440798]
[1724281671533,0.000825,61221.0,61220.0,3.37209798]
[1724281671734,0.000825,61221.0,61220.0,3.04640798]
[1724281672173,0.000825,61221.0,61220.0,2.882405]
[1724281672375,0.000825,61221.0,61220.0,2.877405]
[1724281672577,0.000825,61221.0,61220.0,2.871405]
[1724281672754,0.000825,61221.0,61220.0,2.882405]
[1724281673093,0.000825,61221.0,61220.0,2.876405]
[1724281673515,0.000825,61221.0,61220.0,2.887405]
[1724281674434,0.000825,61221.0,61220.0,2.882405]
[1724281674640,0.000825,61221.0,61220.0,2.890405]
[1724281674839,0.000825,61221.0,61220.0,2.879405]
[1724281675052,0.000825,61221.0,61220.0,2.890405]
[1724281675251,0.000825,61221.0,61220.0,2.882405]
[1724281675454,0.000825,61221.0,61220.0,2.890405]
[1724281680480,0.000825,61221.0,61220.0,2.891405]
[1724281680905,0.000825,61221.0,61220.0,2.890405]
[1724281681334,0.000825,61221.0,61220.0,2.891405]
[1724281681908,0.000825,61221.0,61220.0,2.890405]
[1724281683780,0.000825,61221.0,61220.0,2.893405]
[1724281683974,0.000825,61221.0,61220.0,3.05940798]
[1724281684839,0.000825,61221.0,61220.0,3.38609798]
[1724281685012,0.000825,61221.0,61220.0,3.55297368]
[1724281685791,0.000825,61221.0,61220.0,3.87966368]
[1724281686047,0.000825,61221.0,61220.0,3.50909798]
[1724281689203,0.000825,61221.0,61220.0,3.48609798]
[1724281689409,0.000825,61221.0,61220.0,3.15540798]
[1724281689633,0.000825,61221.0,61220.0,3.15940798]
[1724281690385,0.000825,61221.0,61220.0,3.15540798]
[1724281691571,0.000825,61221.0,61220.0,2.890405]
[1724281691777,0.000825,61221.0,61220.0,2.830105]
[1724281695816,0.000825,61221.0,61220.0,2.831105]
[1724281697933,0.000825,61221.0,61220.0,3.32379798]
[1724281698162,0.000825,61221.0,61220.0,2.99910798]
[1724281698556,0.000825,61221.0,61220.0,3.32579798]
[1724281699971,0.000825,61221.0,61220.0,3.38629798]
[1724281702298,5.4e-07,61224.0,61223.0,1.801707]
[1724281702501,0.00825,61238.0,61237.0,0.816497]
[1724281702707,0.00825,61238.0,61237.0,1.756895]
[1724281703077,0.00825,61238.0,61237.0,1.755895]
[1724281703522,0.00825,61238.0,61237.0,2.085494]
[1724281703833,0.00825,61238.0,61237.0,2.71969598]
[1724281704055,0.00825,61238.0,61237.0,2.84269598]
[1724281704554,0.00925,61238.0,61237.0,2.89156184]
[1724281705013,0.00825,61238.0,61237.0,2.89156184]
[1724281705245,0.00825,61238.0,61237.0,2.85669598]
[1724281705484,0.00825,61238.0,61237.0,2.85569598]
[1724281705705,0.00825,61238.0,61237.0,2.91854282]
[1724281705847,0.00825,61238.0,61237.0,2.87618724]
[1724281706170,0.00825,61238.0,61237.0,2.86218724]
[1724281706372,0.00825,61238.0,61237.0,2.87618724]
[1724281706586,0.00825,61238.0,61237.0,2.86218724]